Cogmind - Beta 13 @@@ ROGUE MODE // 2024.04.05 @ 18:26:02 Player: Fractal Result: Destroyed by G-47 Trooper with Particle Gun Performance ------------- Evolutions (2) 1000 Regions Visited (4) 800 Robots Destroyed (35) 175 Value Destroyed (1046) 1046 Prototype IDs (1) 20 Alien Tech Used (0) 0 Bonus (0) 0 TOTAL SCORE: 3041 Bonus ------- None Cogmind --------- Core Integrity 0/550 Matter 276/300 Energy 64/100 System Corruption 4% Temperature Cool (18) Movement Core (200) Ox3 Location -8/Materials Parts ------- > --- POWER (1) -------- (None) > --- PROPULSION (4) --- (None) > --- UTILITY (4) ------ Medium Storage Unit Visual Processing Unit Improved Terrain Scan Processor > --- WEAPON (2) ------- (None) > --- INVENTORY (10) --- Light Ion Engine Aluminum Leg Sensor Array Improved Sensor Array Improved Terrain Scanner ECM Suite Hardened Light Armor Plating Grenade Launcher Datajack Peak State ------------ > --- POWER ------------ Light Deuterium Engine > --- PROPULSION ------- Aluminum Leg Aluminum Leg Titanium Leg > --- UTILITY ---------- Medium Storage Unit Visual Processing Unit Sensor Array Improved Terrain Scan Processor > --- WEAPON ----------- Heavy EM Pulse Gun Improved Light Cannon > --- INVENTORY -------- Light Ion Engine Airjet Advanced Weight Redist. System Improved Terrain Scanner ECM Suite Hardened Light Armor Plating Grenade Launcher Datajack [Rating: 20] Favorites ----------- Power Light Ion Engine Engine Light Ion Engine Propulsion Improved Hover Unit Leg Aluminum Leg Hover Unit Improved Hover Unit Utility Medium Storage Unit Device Sensor Array Storage Medium Storage Unit Processor Visual Processing Unit Weapon Improved Light Cannon Energy Gun Medium Laser Energy Cannon Beam Cannon Ballistic Cannon Improved Light Cannon Launcher Grenade Launcher Build | -11 -10 -9 -9 -8 ------- Run | Yrd Mat Mat Sto Mat Slots Evolved 4 | . . 2 . 2 Power . | . . . . . Propulsion 2 | . . 1 . 1 Utility 2 | . . 1 . 1 Weapon . | . . . . . Parts Attached 41 | 5 5 3 13 15 Power 6 | 1 . 1 3 1 Engine 6 | 1 . 1 3 1 Core . | . . . . . Reactor . | . . . . . Propulsion 14 | 2 . 1 4 7 Treads . | . . . . . Leg 8 | 2 . 1 . 5 Wheel . | . . . . . Hover 6 | . . . 4 2 Flight . | . . . . . Utility 10 | . 3 1 1 5 Device 6 | . 2 . . 4 Storage 2 | . 1 . 1 . Processor 2 | . . 1 . 1 Hackware . | . . . . . Protection . | . . . . . Artifact . | . . . . . Weapon 11 | 2 2 . 5 2 Energy Gun 3 | 2 . . . 1 Energy Cannon 2 | . 1 . 1 . Ballistic Gun . | . . . . . Ballistic Cannon 5 | . 1 . 3 1 Launcher 1 | . . . 1 . Special Weapon . | . . . . . Impact Weapon . | . . . . . Slashing Weapon . | . . . . . Piercing Weapon . | . . . . . Special Melee Weapon . | . . . . . Unidentified Prototypes 1 | . . . . 1 Parts Lost 15 | . . 1 2 12 Power 2 | . . 1 . 1 Propulsion 7 | . . . 2 5 Utility 2 | . . . . 2 Weapon 4 | . . . . 4 Highest Loss Streak 6 | . . 1 1 6 To Critical Strikes . | . . . . . Average Slot Usage (%) 86 | . 86 92 95 76 Engine 10 | . 14 10 11 8 Leg 10 | . 28 27 . 5 Hover 13 | . . . 28 11 Device 9 | . 6 11 11 7 Storage 9 | . 8 11 11 9 Processor 11 | . . 9 11 17 Energy Gun 1 | . 9 . . 1 Energy Cannon 7 | . 10 11 5 6 Ballistic Cannon 11 | . 8 11 15 8 Naked Turns . | . . . . . Heaviest Build 23 | 6 20 20 22 23 Greatest Support 37 | 20 20 33 33 37 Greatest Overweight (x) 6 | . . . 6 3 Average Overweight (x) . | . . . . . Largest Inventory Capacity 10 | 5 10 10 10 10 Average Capacity 9 | 5 8 10 10 10 Most Carried 10 | 3 10 10 10 10 Average Carried 8 | 1 6 9 9 8 Final Capacity 10 | 5 10 10 10 10 Final Carried 10 | 3 10 10 9 9 Class Distribution -------------------- 86% | Mutant 13% | Skirmisher Dominant Class ---------------- Mutant | -10/Materials Mutant | -9/Materials Mutant | -9/Storage Mutant | -8/Materials Resources | -11 -10 -9 -9 -8 ----------- Run | Yrd Mat Mat Sto Mat Matter Collected 902 | 176 43 97 360 226 Remotely . | . . . . . Salvage Created 1129 | . 57 220 506 346 Parts 68 | . 6 18 32 12 Haulers Intercepted 1 | . . . 1 . Recyclers Shooed 2 | . . 1 . 1 Parts Field Recycled . | . . . . . Retrieved Matter . | . . . . . Parts Self-Destructed . | . . . . . Prevented . | . . . . . Kills | -11 -10 -9 -9 -8 ------- Run | Yrd Mat Mat Sto Mat Combat Hostiles Destroyed 22 | . . 5 11 6 Cannons 20 | . . 5 9 6 AOE 2 | . . . 2 . Classes Destroyed 11 | . 2 4 4 1 Worker 3 | . . . 3 . Builder 1 | . . . 1 . Tunneler 1 | . 1 . . . Hauler 1 | . . . 1 . Recycler 1 | . . . . 1 Operator 2 | . . 1 . 1 Watcher 4 | . 2 . 1 1 Swarmer 2 | . . . 2 . Grunt 11 | . . 2 4 5 Brawler 1 | . . 1 . . Sentry 8 | . . 2 5 1 Best Kill Streak 5 | . 1 2 5 5 Combat Bots Only 4 | . . 2 2 4 Max Kills in Single Turn 2 | . 1 1 2 1 Gunslinging . | . . . . . Exploded 1 | . . . 1 . Melee . | . . . . . Uniques/NPCs Destroyed . | . . . . . Combat | -11 -10 -9 -9 -8 -------- Run | Yrd Mat Mat Sto Mat Hostile Shots Fired 195 | . . 19 47 129 Missed 67 | . . 7 16 44 Damage Taken 2155 | . . 271 402 1482 Core 703 | . . 75 66 562 Absorbed by Shields . | . . . . . Core Remaining (%) 88 | 100 100 . 64 . Volleys Fired 106 | . 19 12 35 40 Largest 2 | . 1 2 2 2 Hottest 99 | . 60 95 99 99 Shots Fired 177 | . 19 24 65 69 Gun 12 | . . . . 12 Cannon 160 | . 19 24 60 57 Launcher 5 | . . . 5 . Special . | . . . . . Kinetic 87 | . . 12 36 39 Thermal 73 | . 19 12 24 18 Explosive 5 | . . . 5 . Electromagnetic 12 | . . . . 12 Robot Hit Streak 12 | . 1 6 4 12 Robot Miss Streak 7 | . 7 3 5 4 Penetration Max . | . . . . . Secondary Targets . | . . . . . Shots Hit Robots 92 | . 5 15 32 40 Core Hits 53 | . 3 9 22 19 Critical Kills . | . . . . . Critical Parts Destroyed . | . . . . . Critical Strikes 5 | . . 1 1 3 Blast 3 | . . 1 1 1 Corrupt 2 | . . . . 2 Melee Attacks . | . . . . . Impact . | . . . . . Slashing . | . . . . . Piercing . | . . . . . Sneak Attacks . | . . . . . Combat Hostiles . | . . . . . Follow-up Attacks . | . . . . . Damage Inflicted 1942 | . 105 276 746 815 Guns 124 | . . . . 124 Cannons 1648 | . 105 264 594 685 Explosions 144 | . . . 144 . Melee . | . . . . . Ramming 26 | . . 12 8 6 Kinetic 1093 | . . 160 421 512 Thermal 555 | . 105 104 173 173 Explosive 144 | . . . 144 . Electromagnetic 124 | . . . . 124 Impact . | . . . . . Slashing . | . . . . . Piercing . | . . . . . Highest Corruption 4 | . . . . 4 Average Corruption 4 | . . . . 4 Corruption Purged . | . . . . . Corruption Blocked . | . . . . . Effects 11 | . . . . 11 Message Errors 3 | . . . . 3 Matter Fused 1 | . . . . 1 Heat Flow Errors 2 | . . . . 2 Energy Discharges 2 | . . . . 2 Parts Rejected 1 | . . . . 1 Misfires 1 | . . . . 1 Weapon Failures 1 | . . . . 1 Overload Shots . | . . . . . Overflow Damage 89 | . . 75 3 11 Projectiles 11 | . . . . 11 Explosions 78 | . . 75 3 . Melee . | . . . . . Knockbacks 5 | . . . . 5 Impact . | . . . . . Kinetic 4 | . . . . 4 Secondary 1 | . . . . 1 Self-Inflicted Damage 129 | . . 100 26 3 Shots 2 | . . 1 1 . Rammed 2 | . . . 1 1 Targets Rammed 4 | . . 2 1 1 Kicked 2 | . . 2 . . Crushed . | . . . . . Highest Temperature 363 | . 100 84 291 363 Average Temperature 79 | . 38 27 81 113 Received Heat Transfer 903 | . . 69 141 693 Effects 6 | . . . . 6 Energy Bleed 1 | . . . . 1 Interference 5 | . . . . 5 Siege Activations . | . . . . . Robots Corrupted . | . . . . . Combat Hostiles . | . . . . . Parts Fried 1 | . . . . 1 Impact Corruptions . | . . . . . Robots Melted . | . . . . . Combat Hostiles . | . . . . . Parts Melted . | . . . . . Heat Transferred 1184 | . 222 222 370 370 Parts Sabotaged . | . . . . . Parts Stolen . | . . . . . Parts Stripped . | . . . . . Power Chain Reactions . | . . . . . Alert | -11 -10 -9 -9 -8 ------- Run | Yrd Mat Mat Sto Mat Peak Influence 340 | . 74 235 340 198 Initial 86 | . . . 14 86 Average 79 | . 26 74 106 83 Maximum Alert Level 1 | . . 1 1 . Low Security (%) 92 | 100 100 86 85 100 Level 1 7 | . . 13 14 . Level 2 . | . . . . . Level 3 . | . . . . . Level 4 . | . . . . . Level 5 . | . . . . . High Security . | . . . . . Max Security . | . . . . . Squads Dispatched 4 | . . . 2 2 Investigation 1 | . . . 1 . Extermination . | . . . . . Reinforcement 3 | . . . 1 2 Assault . | . . . . . Garrison . | . . . . . Intercept . | . . . . . Searches Triggered . | . . . . . Construction Impeded . | . . . . . Haulers Reinforced . | . . . . . Active Scanning Responses . | . . . . . Cargo Convoy Interrupts . | . . . . . Stealth | -11 -10 -9 -9 -8 --------- Run | Yrd Mat Mat Sto Mat Distress Signals 3 | . 1 . 1 1 Communications Jammed . | . . . . . Distress Signals . | . . . . . Times Spotted 55 | . 3 7 19 26 Peak Tracking Total 7 | . 2 4 4 7 Tactical Retreats 6 | . 1 1 . 4 Traps | -11 -10 -9 -9 -8 ------- Run | Yrd Mat Mat Sto Mat Traps Triggered 1 | . . . 1 . Indirectly . | . . . . . Trap Hack Attempts . | . . . . . Triggered . | . . . . . Disarmed . | . . . . . Reprogrammed . | . . . . . Reused . | . . . . . Traps Extracted . | . . . . . Installed . | . . . . . Triggered . | . . . . . Machines | -11 -10 -9 -9 -8 ---------- Run | Yrd Mat Mat Sto Mat Machines Disabled 7 | . 1 1 2 3 Max in Single Turn 1 | . 1 1 1 1 Machines Repaired . | . . . . . Machines Dismantled . | . . . . . Machines Sabotaged . | . . . . . Overloaded Fab Kills . | . . . . . Hacking | -11 -10 -9 -9 -8 --------- Run | Yrd Mat Mat Sto Mat Machines Accessed 13 | . 2 3 7 1 Terminals 11 | . 2 2 6 1 Fabricators . | . . . . . Repair Stations . | . . . . . Recycling Units 2 | . . 1 1 . Scanalyzers . | . . . . . Garrison Access . | . . . . . Total Hacks 26 | . 3 10 10 3 Successful 8 | . 1 2 4 1 Failed 18 | . 2 8 6 2 Catastrophic 6 | . . 2 3 1 Database Lockouts . | . . . . . Manual 11 | . 2 3 4 2 Terminals 19 | . 3 4 9 3 Fabricators . | . . . . . Repair Stations . | . . . . . Recycling Units 7 | . . 6 1 . Scanalyzers . | . . . . . Garrison Access . | . . . . . Terminal Hacks 6 | . 1 1 3 1 Open Door 1 | . . . 1 . Level Access Points 1 | . 1 . . . Alert Level 2 | . . 1 1 . Locate Traps 1 | . . . . 1 Investigation Status 1 | . . . 1 . Fabricator Hacks . | . . . . . Repair Station Hacks . | . . . . . Recycling Unit Hacks 2 | . . 1 1 . Report Inventory 2 | . . 1 1 . Scanalyzer . | . . . . . Garrison Access Hacks . | . . . . . Unauthorized Hacks . | . . . . . Terminals . | . . . . . Fabricators . | . . . . . Repair Stations . | . . . . . Recycling Units . | . . . . . Scanalyzers . | . . . . . Garrison Access . | . . . . . Data Cores Recovered . | . . . . . Used . | . . . . . Hacking Detections 11 | . 2 3 5 1 Full Trace Events . | . . . . . Feedback Events . | . . . . . Feedback Blocked . | . . . . . Robot Schematics Acquired . | . . . . . Robots Built . | . . . . . Authchips . | . . . . . Time . | . . . . . Total Robot Build Rating . | . . . . . Part Schematics Acquired . | . . . . . Parts Built . | . . . . . Authchips . | . . . . . Time . | . . . . . Total Part Build Rating . | . . . . . Parts Repaired . | . . . . . Time . | . . . . . Parts Recycled . | . . . . . Recycled Matter . | . . . . . Retrieved Matter . | . . . . . Retrieved Components . | . . . . . Parts Scanalyzed . | . . . . . Part Schematics Acquired . | . . . . . Parts Damaged . | . . . . . Bothacking | -11 -10 -9 -9 -8 ------------ Run | Yrd Mat Mat Sto Mat Used RIF Installer . | . . . . . Robots Hacked . | . . . . . Non-combat . | . . . . . Combat . | . . . . . Robot Hacks Applied . | . . . . . Relay Couplers Released . | . . . . . Fabnet Peak Effective % . | . . . . . Robots Rewired . | . . . . . Allies Hacked . | . . . . . Hacks Repelled . | . . . . . Allies | -11 -10 -9 -9 -8 -------- Run | Yrd Mat Mat Sto Mat Total Allies . | . . . . . Largest Group . | . . . . . Highest-Rated Group . | . . . . . Highest-Rated Ally . | . . . . . Total Orders . | . . . . . Ally Attacks . | . . . . . Total Damage . | . . . . . Kills . | . . . . . Allies Corrupted . | . . . . . Allies Melted . | . . . . . Intel | -11 -10 -9 -9 -8 ------- Run | Yrd Mat Mat Sto Mat Robot Analysis Total . | . . . . . Derelict Logs Recovered . | . . . . . Drone Launches . | . . . . . Drone Recoveries . | . . . . . Exploration | -11 -10 -9 -9 -8 ------------- Run | Yrd Mat Mat Sto Mat Turns Passed 2662 | 52 402 411 903 894 Spaces Moved 1392 | 42 292 278 477 303 Core 17 | 12 . . 1 4 Treads . | . . . . . Legs 716 | 30 292 278 9 107 Wheels . | . . . . . Hover 659 | . . . 467 192 Flight . | . . . . . Fastest Speed 50 | 50 120 120 52 51 Average Speed 111 | 100 120 120 89 130 Slowest Speed 350 | 120 120 120 350 260 Overloaded Moves . | . . . . . Propulsion Burnouts . | . . . . . Robots Hopped . | . . . . . Cave-ins Triggered . | . . . . . Exploration Rate (%) 27 | 4 32 21 55 23 Regions Visited 4 Branch Regions 1 Pre-discovered Areas . | . . . . . Known Exits Taken 1 | . 1 . . . Unknown Exits Taken 3 | 1 . 1 1 . Scrap Searched . | . . . . . Spaces Dug . | . . . . . Terrain Destroyed 84 | . . 47 36 1 Melee . | . . . . . Projectile 1 | . . . . 1 AOE 83 | . . 47 36 . Terrain Rammed . | . . . . . Walls Destroyed . | . . . . . Machines Disabled . | . . . . . Actions | -11 -10 -9 -9 -8 --------- Run | Yrd Mat Mat Sto Mat Total 2327 | 50 324 332 891 730 Wait 742 | . . 30 353 359 Move 1388 | 41 291 277 476 303 Hop . | . . . . . Pick Up 21 | 4 5 5 2 5 Fast Attach 21 | 4 5 1 4 7 Attach 10 | 1 . 2 1 6 Detach 6 | . 3 . . 3 Swap 10 | . . . 8 2 Drop 19 | . 1 3 11 4 Fire 106 | . 19 12 35 40 Melee . | . . . . . Ram 2 | . . . 1 1 Kick 2 | . . 2 . . Crush . | . . . . . Escape Stasis . | . . . . . Rewire . | . . . . . Trap . | . . . . . Miscellaneous . | . . . . . Route ------- -11/Scrapyard -10/Materials (discovered 4 exits: *Mat x3 / [*Min]) -9/Materials (discovered 2 exits: *Sto x2) -9/Storage -8/Materials History --------- Turn | Location | Event 16 | -11/Scrapyard | Discovered new exit (range 15) 53 | -11/Scrapyard | Entered Materials 159 | -10/Materials | Discovered new exit (range 16) 168 | -10/Materials | Identified exit to Materials 302 | -10/Materials | Build established: Mutant 455 | -10/Materials | Entered another Materials area 455 | -9/Materials | Evolved 2 slots: Propulsion x1, Utility x1 573 | -9/Materials | Discovered new exit (range 15) 730 | -9/Materials | Discovered new exit (range 11) 866 | -9/Materials | Entered Storage 1757 | -9/Storage | Discovered new exit (range 9) 1769 | -9/Storage | Entered Materials 1769 | -8/Materials | Evolved 2 slots: Propulsion x1, Utility x1 2100 | -8/Materials | Build established: Skirmisher 2449 | -8/Materials | Lost 3 parts (1n2w) 2488 | -8/Materials | Build established: Mutant 2658 | -8/Materials | Core integrity fell below 50% 2662 | -8/Materials | Core integrity fell below 20% 2663 | -8/Materials | Destroyed by G-47 Trooper with Particle Gun Last Messages --------------- Dropped Aluminum Leg. Dropped Titanium Leg. U-05 Engineer builds a Wall. Acquired Prototype Hover Unit. Identified Aerolev Unit. U-05 Engineer builds a Wall. Acquired Imp. Sensor Array. System corrupted: Energy discharge (-4). U-05 Engineer builds a Wall. Processing Tank disabled. Slug penetrates Wall. Aerolev Unit destroyed. Airjet destroyed. Penetrated by Slug. U-05 Engineer builds a Wall. Critical hit (Burn: +37). Knocked back. U-05 Engineer destroyed. U-05 Engineer builds a Wall. Adv. Weight Redist. System destroyed. Map ----- +----------------------------------------------------+ | ?????????????????????????????????????????????????? | | ?????????????????????????????????????????????????? | | ?????????????????????????????????????????????????? | | ?????????????????????????????????????????????????? | | ?????????????????????????????????????????????????? | | ?????????????????????????????????????????????????? | | ?????????????????????????????????????????????????? | | ?????????????????????????????????????????????????? | | ?????????????????????????????????????????????????? | | ????????????????????????????????????????? ?????? | | ???????????????????????????????????????? ????? | | ????????????????????????????????######## ????? | | ????????????????????????????????# ????? | | ????????????????????????????????# ?????? | | ????????????????????????????????# ???????? | | ????????????????????????????????+ ????????? | | ????????????????????????????????# ?????????? | | ?????????????????????############ #????????### | | ?????????????????????# """"" ## ##???????# | | ?????????????????????# """"" # #???????# * | | ???????????????????### """" # ######### | | ???????????????????# # g # # | | ???????????????????###=u gHg x/ # % | | ????????????????????##u| g x# + | | ????????????????????##=u u # ##### ### | | ????????????????????##%! @ # ##??# ## | | ?????????????????????##############+######## | | ??????????????????????????????# == / | | ??????????????????????????????# = % #### | | ??????????????????????????????# #??###### | | ??????????????????????????????# """"""" #???????## | | ?????????????????????????????#" """"""" ########## | | ???????????????????????????? # """"""" # ## | | ???????????????????????????#### """"""" # ## | | ??????????????????????????????# """"""" # ## | | ???????????????????????????????????###### # | | ????????????????????????????????????????# ! # | | ????????????????????????????????????????# ! + | | ????????????????????????????????????????# # | | ????????????????????????????????????????# # | | ????????????????????????????????????????# ## | | ????????????????????????????????????????# #? | | ????????????????????????????????????????# #? | | ????????????????????????????????????????#########? | | ?????????????????????????????????????????????????? | | ?????????????????????????????????????????????????? | | ?????????????????????????????????????????????????? | | ?????????????????????????????????????????????????? | | ?????????????????????????????????????????????????? | | ?????????????????????????????????????????????????? | +----------------------------------------------------+ Best States ------------- Heat Dissipation 31 Energy Generation 14 Energy Capacity 140 Matter Stores 300 Matter Capacity 300 Sight Range 18 Robot Scan Range 14 Terrain Scan Range 16 Terrain Scan Density 110 Additional Mass Support 9 Evasion (%) 55 Item Schematics ----------------- None Robot Schematics ------------------ None Fabricated ------------ Nothing Alien Tech Used ----------------- None Achievements -------------- Omniscient Cartographer Challenges ------------ None Game ------ Seed BiocellTargetingSpear Manual? 0 Play Time 00:41:12 Cumulative 13.7 hours Start 2024.04.05 @ 17:43:47 End 2024.04.05 @ 18:26:02 Sessions 1 Manual Loads 0 Difficulty Rogue Special Mode None Game No. 20 Rogue 20 Adventurer 0 Explorer 0 Win Type - Total 0 Types 0/0/0/0/0/0/0/0/0 Lore% 16 Gallery% 16 Achievement% 14 Wizard Run 0 Options --------- Layout 1 ASCII 0 Keyboard 1 Movement Numpad Keybinds 0 Fullscreen 1 Font 48/Terminus Map View 50x35 Zoom Use 0% Tactical HUD 0 Map Filters NONE Filters NONE Steam 1 RUN: 2fd7565e-9c62-4cee-af9e-abbe4852ecdd